[Event "IIFL Wealth  4th Mumbai Junior U-13"]
[Site "Mumbai"]
[Date "2019.01.07"]
[Round "9"]
[White "Tikam Aradhya"]
[Black "Sureka Akshat"]
[Result "1/2-1/2"]
[ECO "C42"]
[WhiteElo "1332"]
[BlackElo "1078"]
[Annotator "NA RC"]
[PlyCount "161"]
[EventDate "2018.12.30"]
[EventType "swiss"]
[EventCountry "IND"]
[SourceTitle "playchess.com"]
[Source "ChessBase"]
[SourceQuality "1"]
[TimeControl "40/5400+30:1800+30"]

1. e4 {[%emt 0:00:00]} e5 {[%emt 0:09:09]} 2. Nf3 {[%emt 0:00:00]} Nf6 {[%emt 0:00:11]} 3. d3 {[%emt 0:00:49]} Nc6 {[%emt 0:00:29]} 4. Nc3 {[%emt 0:00:06]} Be7 {[%emt 0:01:22]} 5. Be2 {[%emt 0:00:05]} O-O {[%emt 0:00:08]} 6. O-O {[%emt 0:00:04]} d6 {[%emt 0:00:57]} 7. Re1 {[%emt 0:01:57]} h6 {[%emt 0:01:59]} 8. h3 {[%emt 0:00:03]} Re8 {[%emt 0:00:27]} 9. Bf1 {[%emt 0:01:21]} Bf8 {[%emt 0:00:46]} 10. Ne2 {[%emt 0:03:01]} g6 {[%emt 0:01:04]} 11. Ng3 {[%emt 0:03:03]} Bg7 {[%emt 0:00:42]} 12. c4 {[%emt 0:13:04]} Bd7 {[%emt 0:08:10]} 13. Be3 {[%emt 0:01:26]} b6 {[%emt 0:00:29]} 14. Qd2 {[%emt 0:01:32]} Kh7 {[%emt 0:01:05]} 15. b4 {[%emt 0:06:23]} a6 {[%emt 0:02:02]} 16. Rec1 {[%emt 0:01:03]} Ne7 {[%emt 0:07:27]} 17. c5 {[%emt 0:01:01]} bxc5 {[%emt 0:00:40]} 18. bxc5 {[%emt 0:00:33]} d5 {[%emt 0:02:15]} 19. Nxe5 {[%emt 0:18:20]} Nxe4 {[%emt 0:01:03]} 20. Nxe4 {[%emt 0:00:24]} Bxe5 {[%emt 0:00:21]} 21. d4 {[%emt 0:00:21]} Bg7 {[%emt 0:01:31]} 22. Nc3 {[%emt 0:02:19]} c6 {[%emt 0:02:11]} 23. Na4 {[%emt 0:01:38]} Ra7 {[%emt 0:04:55]} 24. Rab1 {[%emt 0:02:53]} Nf5 {[%emt 0:03:13]} 25. Rb6 {[%emt 0:02:08]} Nxe3 {[%emt 0:01:01]} 26. fxe3 {[%emt 0:00:05]} Qg5 {[%emt 0:00:25]} 27. Rxa6 {[%emt 0:09:57]} Rxa6 {[%emt 0:00:54]} 28. Bxa6 {[%emt 0:00:05]} Qxe3+ {[%emt 0:00:47]} 29. Qxe3 {[%emt 0:00:18]} Rxe3 {[%emt 0:00:04]} 30. Rd1 {[%emt 0:00:44]} Ra3 {[%emt 0:00:58]} 31. Nb6 {[%emt 0:00:15]} Rxa6 {[%emt 0:01:06]} 32. Nxd7 {[%emt 0:00:08]} Rxa2 {[%emt 0:00:08]} 33. Nb8 {[%emt 0:00:19]} Ra8 {[%emt 0:02:45]} 34. Nxc6 {[%emt 0:00:07]} Rc8 {[%emt 0:00:57]} 35. Ne7 {[%emt 0:00:13]} Rc7 {[%emt 0:01:17]} 36. Nxd5 {[%emt 0:01:01]} Rd7 {[%emt 0:01:51]} 37. c6 {[%emt 0:01:32]} Rxd5 {[%emt 0:00:34]} 38. c7 {[%emt 0:00:02]} Bxd4+ {[%emt 0:00:22]} 39. Rxd4 {[%emt 0:00:02]} Rc5 {[%emt 0:00:19]} 40. Rd7 {[%emt 0:00:00]} Kg7 {[%emt 0:00:00]} 41. Kf2 {[%emt 0:01:35]} Rc3 {[%emt 0:00:25]} 42. Ke2 {[%emt 0:00:21]} Kf6 {[%emt 0:01:15]} 43. Kd2 {[%emt 0:00:06]} Rc6 {[%emt 0:00:16]} 44. Ke3 {[%emt 0:00:33]} Ke6 {[%emt 0:00:15]} 45. c8=Q Rxc8 {[%emt 0:00:10]} 46. Ra7 {[%emt 0:00:23]} Rc2 {[%emt 0:00:54]} 47. Kf3 {[%emt 0:00:13]} Rd2 {[%emt 0:00:12]} 48. Ra6+ {[%emt 0:00:12]} Rd6 {[%emt 0:00:05]} 49. Ra7 {[%emt 0:00:01]} Rd3+ {[%emt 0:01:00]} 50. Kf2 {[%emt 0:00:05]} Kf6 {[%emt 0:00:25]} 51. Ke2 {[%emt 0:00:14]} Rg3 {[%emt 0:00:31]} 52. Kf2 {[%emt 0:00:01]} Rg5 {[%emt 0:00:13]} 53. Ra6+ {[%emt 0:00:16]} Kg7 {[%emt 0:00:07]} 54. Ra7 {[%emt 0:00:17]} Rf5+ {[%emt 0:00:19]} 55. Kg3 {[%emt 0:00:13]} g5 {[%emt 0:00:33]} 56. h4 {[%emt 0:01:07]} Kg6 {[%emt 0:02:40]} 57. hxg5 {[%emt 0:00:26]} Kxg5 {[%emt 0:00:23]} 58. Kh2 {[%emt 0:00:22]} Kg4 {[%emt 0:00:22]} 59. Ra4+ {[%emt 0:00:44]} Rf4 {[%emt 0:00:09]} 60. Ra3 {[%emt 0:00:06]} h5 {[%emt 0:01:22]} 61. Rg3+ {[%emt 0:00:05]} Kf5 {[%emt 0:01:45]} 62. Ra3 {[%emt 0:00:20]} Kg6 {[%emt 0:01:04]} 63. Ra6+ {[%emt 0:00:20]} f6 {[%emt 0:00:05]} 64. Ra5 {[%emt 0:00:16]} Re4 {[%emt 0:00:11]} 65. Kg3 {[%emt 0:00:39]} Re5 {[%emt 0:00:35]} 66. Ra8 {[%emt 0:00:09]} Re7 {[%emt 0:01:32]} 67. Ra5 {[%emt 0:00:14]} f5 {[%emt 0:00:11]} 68. Kf3 {[%emt 0:00:14]} Kg5 {[%emt 0:00:14]} 69. Ra8 {[%emt 0:00:04]} Re6 {[%emt 0:00:14]} 70. Rg8+ {[%emt 0:00:22]} Rg6 {[%emt 0:00:40]} 71. Ra8 {[%emt 0:00:02]} h4 {[%emt 0:02:13]} 72. Rh8 {[%emt 0:00:15]} Rh6 {[%emt 0:01:32]} 73. Rg8+ {[%emt 0:00:01]} Kf6 {[%emt 0:00:22]} 74. Rf8+ {[%emt 0:00:05]} Ke6 {[%emt 0:00:21]} 75. Ra8 {[%emt 0:00:39]} Rg6 {[%emt 0:02:11]} 76. Ra6+ {[%emt 0:00:11]} Kf7 {[%emt 0:00:06]} 77. Ra7+ {[%emt 0:00:11]} Kf6 {[%emt 0:00:47]} 78. Ra6+ {[%emt 0:00:32]} Kg5 {[%emt 0:00:42]} 79. Ra8 {[%emt 0:00:10]} Rf6 {[%emt 0:01:42]} 80. Rg8+ {[%emt 0:00:03]} Rg6 {[%emt 0:00:20]} 81. Rf8 {[%emt 0:00:02]} 1/2-1/2

[Event "IIFL Wealth  4th Mumbai Junior U-13"]
[Site "Mumbai"]
[Date "2019.01.07"]
[Round "9"]
[White "Anurag Panigrahi"]
[Black "Arushi Srichandan"]
[Result "1-0"]
[ECO "B08"]
[WhiteElo "1315"]
[BlackElo "1100"]
[Annotator "NA RC"]
[PlyCount "149"]
[EventDate "2018.12.30"]
[EventType "swiss"]
[EventCountry "IND"]
[SourceTitle "playchess.com"]
[Source "ChessBase"]
[SourceQuality "1"]
[TimeControl "40/5400+30:1800+30"]

1. e4 {[%emt 0:00:00]} d6 {[%emt 0:00:00]} 2. d4 {[%emt 0:00:00]} Nf6 {[%emt 0:00:01]} 3. Nc3 {[%emt 0:00:00]} g6 {[%emt 0:00:19]} 4. Nf3 {[%emt 0:00:00]} Bg7 {[%emt 0:00:40]} 5. h3 {[%emt 0:00:22]} Nc6 {[%emt 0:03:13]} 6. Be3 {[%emt 0:03:50]} a6 {[%emt 0:01:23]} 7. a4 {[%emt 0:02:12]} b6 {[%emt 0:02:52]} 8. Bc4 {[%emt 0:15:20]} Bb7 {[%emt 0:00:26]} 9. e5 {[%emt 0:03:46]} dxe5 {[%emt 0:00:25]} 10. dxe5 {[%emt 0:00:11]} Nh5 {[%emt 0:22:20]} 11. e6 {[%emt 0:04:44]} f5 {[%emt 0:01:44]} 12. Bd5 {[%emt 0:07:04]} Bxc3+ {[%emt 0:02:43]} 13. bxc3 {[%emt 0:00:12]} Nf6 {[%emt 0:02:18]} 14. Bb3 {[%emt 0:05:35]} h6 {[%emt 0:05:18]} 15. O-O {[%emt 0:03:08]} Qxd1 {[%emt 0:04:27]} 16. Raxd1 {[%emt 0:03:39]} g5 {[%emt 0:02:09]} 17. Rfe1 {[%emt 0:07:43]} O-O {[%emt 0:00:50]} 18. Nd4 {[%emt 0:02:23]} Nxd4 {[%emt 0:00:30]} 19. Bxd4 {[%emt 0:04:39]} Bc6 {[%emt 0:01:29]} 20. Be5 {[%emt 0:01:47]} Rac8 {[%emt 0:01:20]} 21. Rd7 {[%emt 0:03:46]} Rfe8 {[%emt 0:05:15]} 22. Rxc7 {[%emt 0:04:15]} Rxc7 {[%emt 0:00:43]} 23. Bxc7 {[%emt 0:00:05]} b5 {[%emt 0:00:19]} 24. axb5 {[%emt 0:02:11]} axb5 {[%emt 0:04:14]} 25. Be5 {[%emt 0:02:17]} Bd5 {[%emt 0:00:40]} 26. Bxd5 {[%emt 0:13:47]} Nxd5 {[%emt 0:00:05]} 27. Rb1 {[%emt 0:00:10]} Rc8 {[%emt 0:00:47]} 28. Rxb5 {[%emt 0:00:51]} Nxc3 {[%emt 0:00:12]} 29. Bxc3 {[%emt 0:04:30]} Rxc3 {[%emt 0:00:04]} 30. Rxf5 {[%emt 0:00:06]} Rxc2 {[%emt 0:00:02]} 31. Rf7 {[%emt 0:00:14]} Re2 {[%emt 0:00:55]} 32. Rxe7 {[%emt 0:03:53]} Kf8 {[%emt 0:00:05]} 33. Rf7+ {[%emt 0:01:00]} Kg8 {[%emt 0:00:07]} 34. Re7 {[%emt 0:00:48]} Kf8 {[%emt 0:00:04]} 35. Rf7+ {[%emt 0:00:17]} Kg8 {[%emt 0:00:05]} 36. Rf6 {[%emt 0:00:13]} Kg7 {[%emt 0:00:05]} 37. Rf7+ {[%emt 0:00:42]} Kg8 {[%emt 0:00:06]} 38. Rf6 {[%emt 0:01:30]} Kg7 {[%emt 0:00:04]} 39. Kf1 {[%emt 0:00:38]} Re5 {[%emt 0:00:13]} 40. Rf7+ {[%emt 0:00:00]} Kg8 {[%emt 0:00:00]} 41. h4 {[%emt 0:07:41]} Rxe6 {[%emt 0:00:45]} 42. Rf5 {[%emt 0:00:46]} gxh4 {[%emt 0:00:32]} 43. Rf4 {[%emt 0:02:38]} Rg6 {[%emt 0:00:08]} 44. Rxh4 {[%emt 0:00:17]} Kg7 {[%emt 0:00:28]} 45. Rh5 {[%emt 0:01:30]} Kf6 {[%emt 0:00:11]} 46. f3 {[%emt 0:01:43]} Kg7 {[%emt 0:00:14]} 47. Kf2 {[%emt 0:00:21]} Kf6 {[%emt 0:00:09]} 48. g4 {[%emt 0:00:18]} Kg7 {[%emt 0:00:04]} 49. Kg3 {[%emt 0:02:05]} Ra6 {[%emt 0:00:16]} 50. Re5 {[%emt 0:02:29]} Kf6 {[%emt 0:00:24]} 51. Rh5 {[%emt 0:00:50]} Kg7 {[%emt 0:00:08]} 52. Rd5 {[%emt 0:05:44]} Kf6 {[%emt 0:00:09]} 53. Kh4 {[%emt 0:02:24]} Kg6 {[%emt 0:00:09]} 54. Rd1 {[%emt 0:02:58]} Rf6 {[%emt 0:00:08]} 55. Rf1 {[%emt 0:00:48]} Rf4 {[%emt 0:00:08]} 56. Kg3 {[%emt 0:00:23]} Ra4 {[%emt 0:00:17]} 57. f4 {[%emt 0:01:59]} Ra3+ {[%emt 0:00:08]} 58. Kh4 {[%emt 0:00:16]} Ra6 {[%emt 0:00:24]} 59. f5+ {[%emt 0:00:38]} Kg7 {[%emt 0:00:12]} 60. Kh5 {[%emt 0:00:22]} Rf6 {[%emt 0:00:05]} 61. Rc1 {[%emt 0:00:36]} Rf7 {[%emt 0:00:21]} 62. Rc6 {[%emt 0:00:34]} Kh7 {[%emt 0:00:40]} 63. Rxh6+ {[%emt 0:00:17]} Kg7 {[%emt 0:00:05]} 64. f6+ {[%emt 0:02:21]} Rxf6 {[%emt 0:00:07]} 65. Rxf6 {[%emt 0:00:04]} Kxf6 {[%emt 0:00:05]} 66. Kh6 {[%emt 0:00:07]} Kf7 {[%emt 0:00:10]} 67. g5 {[%emt 0:00:09]} Kg8 {[%emt 0:00:02]} 68. Kg6 {[%emt 0:00:10]} Kh8 {[%emt 0:00:02]} 69. Kf7 {[%emt 0:00:10]} Kh7 {[%emt 0:00:04]} 70. g6+ {[%emt 0:00:07]} Kh6 {[%emt 0:00:04]} 71. g7 {[%emt 0:00:04]} Kh5 {[%emt 0:00:03]} 72. g8=Q {[%emt 0:00:12]} Kh4 {[%emt 0:00:02]} 73. Qg2 {[%emt 0:00:09]} Kh5 {[%emt 0:00:03]} 74. Qg3 {[%emt 0:00:08]} Kh6 {[%emt 0:00:06]} 75. Qg6# 1-0

[Event "IIFL Wealth  4th Mumbai Junior U-13"]
[Site "Mumbai"]
[Date "2019.01.07"]
[Round "9"]
[White "Sohanganesh Uddhav Nikam"]
[Black "Vedant Nitin vekhande"]
[Result "0-1"]
[ECO "B50"]
[WhiteElo "1299"]
[BlackElo "1564"]
[Annotator "NA RC"]
[PlyCount "58"]
[EventDate "2018.12.30"]
[EventType "swiss"]
[EventCountry "IND"]
[SourceTitle "playchess.com"]
[Source "ChessBase"]
[SourceQuality "1"]
[TimeControl "40/5400+30:1800+30"]

1. e4 {[%emt 0:00:00]} c5 {[%emt 0:11:54]} 2. Nf3 {[%emt 0:00:00]} d6 {[%emt 0:00:16]} 3. Bc4 {[%emt 0:00:02]} g6 {[%emt 0:00:40]} 4. Nc3 {[%emt 0:00:23]} Bg7 {[%emt 0:00:05]} 5. O-O {[%emt 0:00:16]} Nc6 {[%emt 0:00:05]} 6. Re1 {[%emt 0:01:19]} e6 {[%emt 0:00:10]} 7. d3 {[%emt 0:02:31]} Nge7 {[%emt 0:00:08]} 8. Bg5 {[%emt 0:00:19]} O-O {[%emt 0:01:20]} 9. a3 {[%emt 0:25:36]} h6 {[%emt 0:00:24]} 10. Bh4 {[%emt 0:02:27]} a6 {[%emt 0:01:31]} 11. Ba2 {[%emt 0:01:42]} b5 {[%emt 0:00:47]} 12. Rb1 {[%emt 0:10:42]} Qb6 {[%emt 0:05:49]} 13. Ne2 {[%emt 0:10:43]} Re8 {[%emt 0:08:34]} 14. Bxe7 {[%emt 0:14:27]} Rxe7 {[%emt 0:00:16]} 15. Nf4 {[%emt 0:00:10]} Bb7 {[%emt 0:04:30]} 16. g4 {[%emt 0:03:37]} Ne5 {[%emt 0:06:58]} 17. h3 {[%emt 0:06:35]} Rae8 {[%emt 0:04:20]} 18. Re3 {[%emt 0:06:30]} h5 {[%emt 0:04:43]} 19. g5 {[%emt 0:00:24]} Qd8 {[%emt 0:02:54]} 20. Nxe5 {[%emt 0:03:21]} Bxe5 {[%emt 0:01:47]} 21. Nxh5 {[%emt 0:01:07]} gxh5 {[%emt 0:00:14]} 22. Qxh5 {[%emt 0:00:02]} f6 {[%emt 0:07:29]} 23. g6 {[%emt 0:06:33]} Rg7 {[%emt 0:00:35]} 24. Qg4 {[%emt 0:00:10]} d5 {[%emt 0:02:27]} 25. h4 {[%emt 0:00:43]} f5 {[%emt 0:00:43]} 26. exf5 {[%emt 0:01:20]} exf5 {[%emt 0:00:01]} 27. Qxf5 {[%emt 0:00:19]} Qxh4 {[%emt 0:00:06]} 28. Rh3 {[%emt 0:00:52]} Qf6 {[%emt 0:00:32]} 29. Re3 Qh4 0-1

[Event "IIFL Wealth  4th Mumbai Junior U-13"]
[Site "Mumbai"]
[Date "2019.01.07"]
[Round "9"]
[White "Tawade Arnav"]
[Black "Krishnan Ritvik"]
[Result "1/2-1/2"]
[ECO "E98"]
[WhiteElo "1285"]
[BlackElo "1812"]
[Annotator "NA RC"]
[PlyCount "62"]
[EventDate "2018.12.30"]
[EventType "swiss"]
[EventCountry "IND"]
[SourceTitle "playchess.com"]
[Source "ChessBase"]
[SourceQuality "1"]
[TimeControl "40/5400+30:1800+30"]

1. d4 Nf6 2. c4 g6 3. Nc3 Bg7 4. e4 d6 5. Nf3 O-O 6. Be2 e5 7. O-O Nc6 8. d5 Ne7 9. Ne1 Nd7 10. Nd3 f5 11. Bd2 Nf6 12. f3 f4 13. c5 g5 14. cxd6 cxd6 15. Nf2 Ng6 16. Qc2 Rf7 17. Rfc1 Bf8 18. a4 h5 19. h3 Rg7 20. Nb5 Ne8 21. Ra3 a6 22. Rc3 Bxh3 23. Nxh3 axb5 24. Rc8 Rxc8 25. Qxc8 Qb6+ 26. Kf1 Nc7 27. Qb8 Na6 28. Qc8 Nc7 29. Qb8 Na6 30. Qc8 Nc7 31. Qb8 Na6 1/2-1/2

[Event "IIFL Wealth  4th Mumbai Junior U-13"]
[Site "Mumbai"]
[Date "2019.01.07"]
[Round "9"]
[White "Sai Mahati A"]
[Black "Akshit Jha"]
[Result "0-1"]
[ECO "A40"]
[WhiteElo "1267"]
[BlackElo "1604"]
[Annotator "NA RC"]
[PlyCount "70"]
[EventDate "2018.12.30"]
[EventType "swiss"]
[EventCountry "IND"]
[SourceTitle "playchess.com"]
[Source "ChessBase"]
[SourceQuality "1"]
[TimeControl "40/5400+30:1800+30"]

1. d4 {[%emt 0:02:32]} c6 {[%emt 0:00:00]} 2. c4 {[%emt 0:00:21]} d6 {[%emt 0:00:00]} 3. e4 {[%emt 0:00:29]} Qc7 {[%emt 0:00:00]} 4. Nc3 {[%emt 0:00:42]} Nf6 {[%emt 0:00:10]} 5. Nf3 {[%emt 0:01:13]} Bg4 {[%emt 0:00:11]} 6. Be2 {[%emt 0:04:10]} Nbd7 {[%emt 0:02:14]} 7. O-O {[%emt 0:02:08]} e5 {[%emt 0:00:07]} 8. d5 {[%emt 0:02:31]} Be7 {[%emt 0:00:22]} 9. Be3 {[%emt 0:02:16]} O-O {[%emt 0:00:34]} 10. h3 {[%emt 0:06:02]} Bh5 {[%emt 0:00:12]} 11. Nh4 {[%emt 0:10:06]} Bg6 {[%emt 0:05:52]} 12. Nxg6 {[%emt 0:01:29]} hxg6 {[%emt 0:00:11]} 13. f4 {[%emt 0:03:36]} Nh7 {[%emt 0:02:20]} 14. f5 {[%emt 0:03:41]} gxf5 {[%emt 0:01:07]} 15. Rxf5 {[%emt 0:04:50]} Ndf6 {[%emt 0:01:01]} 16. Qd2 {[%emt 0:03:40]} Qd7 {[%emt 0:09:01]} 17. Raf1 {[%emt 0:03:36]} cxd5 {[%emt 0:00:58]} 18. cxd5 {[%emt 0:01:21]} a6 {[%emt 0:00:16]} 19. a4 {[%emt 0:05:37]} Bd8 {[%emt 0:03:01]} 20. g4 {[%emt 0:10:20]} Ba5 {[%emt 0:02:20]} 21. Qc2 {[%emt 0:05:20]} Qe7 {[%emt 0:03:58]} 22. g5 {[%emt 0:04:37]} Ne8 {[%emt 0:01:34]} 23. h4 {[%emt 0:01:49]} g6 {[%emt 0:01:48]} 24. R5f2 {[%emt 0:01:59]} Ng7 {[%emt 0:00:59]} 25. Bg4 {[%emt 0:03:00]} Bd8 {[%emt 0:07:27]} 26. Qd2 {[%emt 0:01:53]} Qe8 {[%emt 0:04:00]} 27. Bh3 {[%emt 0:04:51]} Nh5 {[%emt 0:03:58]} 28. Kh2 {[%emt 0:02:58]} Ba5 {[%emt 0:00:44]} 29. Bg4 {[%emt 0:01:31]} Bxc3 {[%emt 0:07:03]} 30. Qxc3 {[%emt 0:02:07]} Qxa4 {[%emt 0:00:15]} 31. Bxh5 {[%emt 0:00:08]} gxh5 {[%emt 0:00:05]} 32. Qd3 {[%emt 0:02:39]} Rac8 {[%emt 0:13:48]} 33. Bd2 {[%emt 0:01:58]} Qc2 {[%emt 0:03:55]} 34. Qf3 {[%emt 0:00:55]} Rc4 {[%emt 0:00:03]} 35. Re2 {[%emt 0:00:30]} f5 {[%emt 0:04:04]} 0-1

[Event "IIFL Wealth  4th Mumbai Junior U-13"]
[Site "Mumbai"]
[Date "2019.01.07"]
[Round "9"]
[White "Ghadge Harsh"]
[Black "Ratnapriya K"]
[Result "0-1"]
[ECO "E21"]
[WhiteElo "1265"]
[BlackElo "1516"]
[Annotator "NA RC"]
[PlyCount "91"]
[EventDate "2018.12.30"]
[EventType "swiss"]
[EventCountry "IND"]
[SourceTitle "playchess.com"]
[Source "ChessBase"]
[SourceQuality "1"]
[TimeControl "40/5400+30:1800+30"]

1. d4 {[%emt 0:00:00]} Nf6 {[%emt 0:00:43]} 2. Nf3 {[%emt 0:01:05]} e6 {[%emt 0:00:22]} 3. c4 {[%emt 0:00:06]} b6 {[%emt 0:00:22]} 4. Nc3 {[%emt 0:04:09]} Bb7 {[%emt 0:00:38]} 5. e3 {[%emt 0:01:51]} Bb4 {[%emt 0:00:23]} 6. Bd2 {[%emt 0:00:45]} O-O {[%emt 0:00:24]} 7. Be2 {[%emt 0:08:27]} c5 {[%emt 0:00:42]} 8. O-O {[%emt 0:07:20]} d6 {[%emt 0:01:18]} 9. a3 {[%emt 0:08:37]} Bxc3 {[%emt 0:00:44]} 10. Bxc3 {[%emt 0:00:11]} Ne4 {[%emt 0:01:13]} 11. Rc1 {[%emt 0:03:19]} Qc7 {[%emt 0:01:42]} 12. Nd2 {[%emt 0:08:16]} f5 {[%emt 0:07:15]} 13. Nxe4 {[%emt 0:05:37]} Bxe4 {[%emt 0:00:28]} 14. d5 {[%emt 0:03:22]} exd5 {[%emt 0:02:46]} 15. f3 {[%emt 0:00:28]} d4 {[%emt 0:00:23]} 16. exd4 {[%emt 0:00:23]} Bb7 {[%emt 0:02:17]} 17. d5 {[%emt 0:00:56]} Nd7 {[%emt 0:01:13]} 18. Qd2 {[%emt 0:00:33]} Rae8 {[%emt 0:03:41]} 19. Qg5 {[%emt 0:05:04]} Ne5 {[%emt 0:02:03]} 20. f4 {[%emt 0:01:38]} Ng6 {[%emt 0:00:16]} 21. Bh5 {[%emt 0:00:17]} Qe7 {[%emt 0:02:04]} 22. Qxe7 {[%emt 0:03:01]} Rxe7 {[%emt 0:01:10]} 23. Bxg6 {[%emt 0:02:06]} hxg6 {[%emt 0:00:45]} 24. b3 {[%emt 0:04:07]} Re4 {[%emt 0:08:20]} 25. Rce1 {[%emt 0:00:48]} Rfe8 {[%emt 0:01:41]} 26. g3 {[%emt 0:07:38]} Kf7 {[%emt 0:10:42]} 27. Kf2 {[%emt 0:03:42]} b5 {[%emt 0:02:34]} 28. Rxe4 {[%emt 0:02:56]} Rxe4 {[%emt 0:00:47]} 29. cxb5 {[%emt 0:00:33]} Bxd5 {[%emt 0:03:54]} 30. Rd1 {[%emt 0:00:57]} Ke6 {[%emt 0:01:58]} 31. b4 {[%emt 0:01:52]} Bc4 {[%emt 0:01:41]} 32. bxc5 {[%emt 0:03:03]} dxc5 {[%emt 0:02:34]} 33. Bxg7 {[%emt 0:01:04]} Re2+ {[%emt 0:01:25]} 34. Kg1 {[%emt 0:00:13]} Bd5 {[%emt 0:00:31]} 35. Bf8 {[%emt 0:01:33]} c4 {[%emt 0:03:23]} 36. Bc5 {[%emt 0:00:52]} Rg2+ {[%emt 0:00:53]} 37. Kf1 {[%emt 0:00:04]} Rxh2 {[%emt 0:02:05]} 38. Bxa7 {[%emt 0:00:46]} Rb2 {[%emt 0:00:28]} 39. b6 {[%emt 0:00:44]} c3 {[%emt 0:01:24]} 40. b7 {[%emt 0:00:00]} Rxb7 {[%emt 0:00:00]} 41. Bc5 {[%emt 0:03:21]} Be4 {[%emt 0:03:14]} 42. Bb4 {[%emt 0:01:07]} c2 {[%emt 0:00:26]} 43. Rc1 {[%emt 0:00:48]} Rd7 {[%emt 0:01:01]} 44. Ke2 {[%emt 0:00:20]} Rd1 {[%emt 0:00:50]} 45. Bd2 {[%emt 0:01:22]} Kd5 {[%emt 0:00:20]} 46. a4 {[%emt 0:01:13]} 0-1

[Event "IIFL Wealth  4th Mumbai Junior U-13"]
[Site "Mumbai"]
[Date "2019.01.07"]
[Round "9"]
[White "Darsh Shetty"]
[Black "Shrey Nilkant"]
[Result "1-0"]
[ECO "A01"]
[WhiteElo "1260"]
[BlackElo "1466"]
[Annotator "NA RC"]
[PlyCount "91"]
[EventDate "2018.12.30"]
[EventType "swiss"]
[EventCountry "IND"]
[SourceTitle "playchess.com"]
[Source "ChessBase"]
[SourceQuality "1"]
[TimeControl "40/5400+30:1800+30"]

1. b3 {[%emt 0:10:30]} e5 {[%emt 0:02:06]} 2. Bb2 {[%emt 0:00:15]} Nc6 {[%emt 0:00:11]} 3. e3 {[%emt 0:00:21]} d5 {[%emt 0:01:02]} 4. Bb5 {[%emt 0:00:07]} Bd6 {[%emt 0:04:26]} 5. f4 {[%emt 0:00:17]} Qe7 {[%emt 0:29:47]} 6. Nf3 {[%emt 0:00:14]} Bg4 {[%emt 0:00:29]} 7. fxe5 {[%emt 0:00:16]} Bxf3 {[%emt 0:00:29]} 8. exd6 {[%emt 0:01:35]} Qh4+ {[%emt 0:03:45]} 9. g3 {[%emt 0:02:33]} Qe4 {[%emt 0:10:31]} 10. Bd3 {[%emt 0:02:42]} Qg4 {[%emt 0:04:58]} 11. Be2 {[%emt 0:00:40]} Bxe2 {[%emt 0:07:00]} 12. Qxe2 {[%emt 0:01:23]} Qxe2+ {[%emt 0:00:04]} 13. Kxe2 {[%emt 0:00:08]} f6 {[%emt 0:00:20]} 14. Nc3 {[%emt 0:04:46]} O-O-O {[%emt 0:11:02]} 15. Ba3 {[%emt 0:04:27]} cxd6 {[%emt 0:06:16]} 16. Nb5 {[%emt 0:09:24]} Nh6 {[%emt 0:01:57]} 17. Nxd6+ {[%emt 0:01:43]} Kc7 {[%emt 0:00:29]} 18. Nb5+ {[%emt 0:00:11]} Kb8 {[%emt 0:00:26]} 19. Bb2 {[%emt 0:08:58]} a6 {[%emt 0:03:09]} 20. Nd4 {[%emt 0:03:10]} Nxd4+ {[%emt 0:00:43]} 21. Bxd4 {[%emt 0:00:03]} Rhe8 {[%emt 0:00:36]} 22. Rhf1 {[%emt 0:02:20]} Ng4 {[%emt 0:00:50]} 23. h3 {[%emt 0:00:10]} Ne5 {[%emt 0:00:07]} 24. Bxe5+ {[%emt 0:00:12]} Rxe5 25. c3 {[%emt 0:02:27]} Kc7 {[%emt 0:02:15]} 26. g4 {[%emt 0:01:38]} h5 {[%emt 0:02:40]} 27. Rg1 {[%emt 0:02:08]} h4 {[%emt 0:02:19]} 28. Rg2 {[%emt 0:00:51]} Kd6 {[%emt 0:01:29]} 29. Rag1 {[%emt 0:00:11]} g6 {[%emt 0:01:07]} 30. Rf2 {[%emt 0:01:39]} Ke6 {[%emt 0:00:44]} 31. Rgf1 {[%emt 0:02:08]} Rf8 {[%emt 0:00:14]} 32. Rf4 {[%emt 0:02:45]} f5 {[%emt 0:02:57]} 33. Rb4 {[%emt 0:02:30]} Re4 {[%emt 0:01:18]} 34. Rb6+ {[%emt 0:02:26]} Kf7 {[%emt 0:00:32]} 35. Rxb7+ {[%emt 0:00:11]} Kf6 {[%emt 0:00:09]} 36. Rd7 {[%emt 0:02:40]} Ke6 {[%emt 0:00:38]} 37. Ra7 {[%emt 0:00:08]} g5 {[%emt 0:00:25]} 38. gxf5+ {[%emt 0:00:18]} Rxf5 {[%emt 0:00:07]} 39. Rxa6+ {[%emt 0:00:24]} Ke5 {[%emt 0:00:06]} 40. Rxf5+ {[%emt 0:00:00]} Kxf5 {[%emt 0:00:00]} 41. Kf3 {[%emt 0:03:31]} g4+ {[%emt 0:01:01]} 42. hxg4+ {[%emt 0:00:16]} Rxg4 {[%emt 0:00:03]} 43. Rf6+ {[%emt 0:00:30]} Kg5 {[%emt 0:00:29]} 44. Rg6+ {[%emt 0:00:07]} Kh5 {[%emt 0:00:16]} 45. Rxg4 {[%emt 0:00:08]} h3 {[%emt 0:00:04]} 46. Rg1 {[%emt 0:00:18]} 1-0

[Event "IIFL Wealth  4th Mumbai Junior U-13"]
[Site "Mumbai"]
[Date "2019.01.07"]
[Round "9"]
[White "Bulsara Yazaan"]
[Black "Vedant Mistry"]
[Result "0-1"]
[ECO "C54"]
[WhiteElo "1244"]
[BlackElo "1075"]
[Annotator "NA RC"]
[PlyCount "48"]
[EventDate "2018.12.30"]
[EventType "swiss"]
[EventCountry "IND"]
[SourceTitle "playchess.com"]
[Source "ChessBase"]
[SourceQuality "1"]
[TimeControl "40/5400+30:1800+30"]

1. e4 {[%emt 0:03:36]} e5 {[%emt 0:05:16]} 2. Nf3 {[%emt 0:00:21]} Nc6 {[%emt 0:00:11]} 3. Bc4 Bc5 {[%emt 0:00:06]} 4. c3 {[%emt 0:00:15]} Nf6 {[%emt 0:00:04]} 5. d3 {[%emt 0:00:28]} d6 {[%emt 0:00:06]} 6. O-O {[%emt 0:00:15]} a6 {[%emt 0:00:08]} 7. Re1 {[%emt 0:00:27]} Ba7 {[%emt 0:00:10]} 8. Bg5 {[%emt 0:00:18]} h6 {[%emt 0:00:08]} 9. Bh4 {[%emt 0:00:18]} g5 {[%emt 0:00:19]} 10. Bg3 {[%emt 0:00:09]} Na5 {[%emt 0:08:19]} 11. Bb3 {[%emt 0:02:46]} Nxb3 {[%emt 0:00:27]} 12. Qxb3 {[%emt 0:00:09]} Nh5 {[%emt 0:02:28]} 13. Qd1 {[%emt 0:03:24]} Nxg3 {[%emt 0:01:26]} 14. hxg3 {[%emt 0:00:04]} Bg4 {[%emt 0:00:18]} 15. Nbd2 {[%emt 0:00:42]} Qf6 {[%emt 0:00:29]} 16. Qa4+ {[%emt 0:00:50]} Bd7 {[%emt 0:00:55]} 17. Qc4 {[%emt 0:00:42]} O-O-O {[%emt 0:00:22]} 18. d4 {[%emt 0:00:39]} g4 {[%emt 0:02:44]} 19. dxe5 {[%emt 0:00:34]} dxe5 {[%emt 0:00:38]} 20. Nxe5 {[%emt 0:08:13]} Bxf2+ {[%emt 0:03:22]} 21. Kh2 {[%emt 0:04:25]} Qxe5 {[%emt 0:00:18]} 22. Nf3 {[%emt 0:07:17]} gxf3 {[%emt 0:00:18]} 23. gxf3 {[%emt 0:07:09]} Qxg3+ {[%emt 0:00:26]} 24. Kh1 {[%emt 0:01:11]} Qh3# {[%emt 0:00:01]} 0-1